[Event "Charlotte Open 2024"]
[Site "Charlotte"]
[Date "2024.01.15"]
[Round "6.13"]
[White "Karthik, Advaith"]
[Black "Vigorito, David"]
[Result "0-1"]
[ECO "E92"]
[WhiteElo "2124"]
[BlackElo "2256"]
[Annotator "RC"]
[PlyCount "86"]
[EventDate "2024.01.05"]
[EventType "swiss"]
[EventCountry "USA"]
[SourceTitle "playchess.com"]
[Source "ChessBase"]
[SourceQuality "1"]
[TimeControl "6600+10"]

1. d4 {[%emt 0:08:40]} Nf6 {[%emt 0:00:25]} 2. c4 {[%emt 0:00:10]} g6 {[%emt 0:00:19]} 3. Nc3 {[%emt 0:00:21]} Bg7 {[%emt 0:00:13]} 4. e4 {[%emt 0:00:16]} d6 {[%emt 0:00:07]} 5. Nf3 {[%emt 0:00:13]} O-O {[%emt 0:00:19]} 6. Be2 {[%emt 0:00:06]} e5 {[%emt 0:00:28]} 7. Be3 {[%emt 0:00:30]} Ng4 {[%emt 0:01:48]} 8. Bg5 {[%emt 0:00:16]} f6 {[%emt 0:00:07]} 9. Bh4 {[%emt 0:00:06]} Nc6 {[%emt 0:00:42]} 10. d5 {[%emt 0:00:21]} Ne7 {[%emt 0:00:19]} 11. Nd2 {[%emt 0:00:21]} h5 {[%emt 0:01:34]} 12. Bxg4 {[%emt 0:10:42]} hxg4 {[%emt 0:02:04]} 13. f3 {[%emt 0:00:12]} gxf3 {[%emt 0:01:57]} 14. gxf3 {[%emt 0:00:32]} Bh6 {[%emt 0:01:54]} 15. Qe2 {[%emt 0:01:14]} c6 {[%emt 0:04:50]} 16. Bf2 {[%emt 0:04:56]} Kg7 {[%emt 0:02:25]} 17. O-O-O {[%emt 0:02:39]} Bh3 {[%emt 0:01:32]} 18. Kb1 {[%emt 0:01:24]} c5 {[%emt 0:05:15]} 19. Be3 {[%emt 0:04:47]} Rh8 {[%emt 0:00:59]} 20. Rdg1 {[%emt 0:01:23]} Qd7 {[%emt 0:07:14]} 21. Nd1 {[%emt 0:01:06]} f5 {[%emt 0:03:55]} 22. Bxh6+ {[%emt 0:01:47]} Rxh6 {[%emt 0:00:54]} 23. Nf2 {[%emt 0:00:10]} f4 {[%emt 0:00:53]} 24. Nxh3 {[%emt 0:04:53]} Rxh3 {[%emt 0:02:02]} 25. Rg4 {[%emt 0:00:53]} Rah8 {[%emt 0:00:33]} 26. Nb3 {[%emt 0:00:41]} a6 {[%emt 0:03:17]} 27. Rg2 {[%emt 0:02:29]} b5 {[%emt 0:04:52]} 28. Nd2 {[%emt 0:00:42]} Kf7 {[%emt 0:03:10]} 29. Rhg1 {[%emt 0:00:31]} R8h6 {[%emt 0:00:51]} 30. Ka1 {[%emt 0:01:46]} Qe8 {[%emt 0:01:48]} 31. Kb1 {[%emt 0:01:23]} b4 {[%emt 0:01:36]} 32. Ka1 {[%emt 0:01:37]} a5 {[%emt 0:00:26]} 33. Kb1 {[%emt 0:00:30]} a4 {[%emt 0:00:14]} 34. Ka1 {[%emt 0:01:06]} Qh8 {[%emt 0:01:49]} 35. Nf1 {[%emt 0:02:24]} Qa8 {[%emt 0:01:52]} 36. Nd2 {[%emt 0:00:21]} a3 {[%emt 0:00:16]} 37. b3 {[%emt 0:00:06]} Qh8 {[%emt 0:00:27]} 38. Nf1 {[%emt 0:00:52]} R6h4 {[%emt 0:01:36]} 39. Rg4 {[%emt 0:03:21]} Qh5 {[%emt 0:02:46]} 40. Kb1 {[%emt 0:05:09]} Rxg4 {[%emt 0:03:09]} 41. Rxg4 {[%emt 0:00:04]} Ng8 {[%emt 0:01:49]} 42. Qg2 {[%emt 0:02:30]} Nf6 {[%emt 0:02:06]} 43. Rxg6 {[%emt 0:43:50]} Qxf3 {[%emt 0:00:13]} 0-1

[Event "Charlotte Open 2024"]
[Site "Charlotte"]
[Date "2024.01.15"]
[Round "6.14"]
[White "Ligotti, John J"]
[Black "Jiang, Andrew"]
[Result "0-1"]
[ECO "D11"]
[WhiteElo "1864"]
[BlackElo "2213"]
[Annotator "RC"]
[PlyCount "86"]
[EventDate "2024.01.05"]
[EventType "swiss"]
[EventCountry "USA"]
[SourceTitle "playchess.com"]
[Source "ChessBase"]
[SourceQuality "1"]
[TimeControl "6600+10"]

1. d4 {[%emt 0:00:30]} d5 {[%emt 0:00:11]} 2. Nf3 {[%emt 0:00:17]} Nf6 {[%emt 0:00:12]} 3. g3 {[%emt 0:00:20]} Bf5 {[%emt 0:00:10]} 4. Bg2 {[%emt 0:00:08]} e6 {[%emt 0:00:10]} 5. c4 {[%emt 0:00:19]} c6 {[%emt 0:00:26]} 6. Nc3 {[%emt 0:00:19]} Be7 {[%emt 0:00:59]} 7. Qb3 {[%emt 0:00:25]} Qb6 {[%emt 0:03:07]} 8. c5 {[%emt 0:00:57]} Qxb3 {[%emt 0:06:03]} 9. axb3 {[%emt 0:00:18]} O-O {[%emt 0:03:43]} 10. h3 {[%emt 0:03:54]} h6 {[%emt 0:02:04]} 11. g4 {[%emt 0:00:44]} Bh7 {[%emt 0:02:05]} 12. Bf4 {[%emt 0:01:25]} Nbd7 {[%emt 0:04:12]} 13. b4 {[%emt 0:01:21]} Ne4 {[%emt 0:02:20]} 14. O-O {[%emt 0:04:20]} a6 {[%emt 0:00:41]} 15. e3 {[%emt 0:04:42]} Bf6 {[%emt 0:03:48]} 16. Nxe4 {[%emt 0:14:45]} Bxe4 {[%emt 0:00:11]} 17. Bd6 {[%emt 0:05:19]} Bxf3 {[%emt 0:02:30]} 18. Bxf3 {[%emt 0:00:19]} Rfe8 {[%emt 0:00:11]} 19. Rad1 {[%emt 0:14:38]} e5 {[%emt 0:00:37]} 20. dxe5 {[%emt 0:00:23]} Bxe5 {[%emt 0:01:22]} 21. Bxe5 {[%emt 0:03:11]} Nxe5 {[%emt 0:00:17]} 22. Be2 {[%emt 0:04:48]} Re7 {[%emt 0:00:17]} 23. Rd4 {[%emt 0:02:05]} Rae8 {[%emt 0:00:59]} 24. Kg2 {[%emt 0:03:06]} Ng6 {[%emt 0:02:31]} 25. Rfd1 {[%emt 0:04:42]} Nf8 {[%emt 0:01:03]} 26. Bf3 {[%emt 0:01:29]} Ne6 {[%emt 0:01:21]} 27. R4d2 {[%emt 0:00:02]} g6 {[%emt 0:06:35]} 28. Kh2 {[%emt 0:02:45]} Rd7 {[%emt 0:03:46]} 29. Kg3 {[%emt 0:01:51]} f5 {[%emt 0:03:25]} 30. e4 {[%emt 0:04:41]} fxe4 {[%emt 0:00:23]} 31. Bxe4 {[%emt 0:00:08]} Kg7 {[%emt 0:00:39]} 32. Bg2 {[%emt 0:00:30]} Ng5 {[%emt 0:01:42]} 33. h4 {[%emt 0:00:52]} Ne4+ {[%emt 0:00:09]} 34. Bxe4 {[%emt 0:00:06]} Rxe4 {[%emt 0:00:09]} 35. Rd4 {[%emt 0:00:12]} Rde7 {[%emt 0:00:09]} 36. R1d3 {[%emt 0:09:44]} Rxd4 {[%emt 0:02:47]} 37. Rxd4 {[%emt 0:00:01]} g5 {[%emt 0:02:59]} 38. hxg5 {[%emt 0:02:53]} hxg5 {[%emt 0:00:46]} 39. b3 {[%emt 0:01:04]} Kf6 {[%emt 0:01:05]} 40. Kf3 {[%emt 0:01:53]} Re1 {[%emt 0:00:30]} 41. Kg3 {[%emt 0:00:36]} Ke5 {[%emt 0:50:26]} 42. Rd3 {[%emt 0:00:45]} Ke4 {[%emt 0:00:00]} 43. Rf3 {[%emt 0:03:23]} Rg1+ {[%emt 0:00:00]} 0-1

[Event "Charlotte Open 2024"]
[Site "Charlotte"]
[Date "2024.01.16"]
[Round "6.15"]
[White "King, Alexander"]
[Black "Brady, Tyson"]
[Result "1/2-1/2"]
[ECO "E63"]
[WhiteElo "2302"]
[BlackElo "2063"]
[Annotator "RC"]
[PlyCount "80"]
[EventDate "2024.01.05"]
[EventType "swiss"]
[EventCountry "USA"]
[SourceTitle "playchess.com"]
[Source "ChessBase"]
[SourceQuality "1"]
[TimeControl "6600+10"]

1. d4 {[%emt 0:02:36]} Nf6 {[%emt 0:00:05]} 2. Nf3 {[%emt 0:00:37]} g6 {[%emt 0:00:08]} 3. g3 {[%emt 0:00:43]} Bg7 {[%emt 0:00:06]} 4. Bg2 {[%emt 0:00:13]} O-O {[%emt 0:00:04]} 5. O-O {[%emt 0:00:30]} d6 {[%emt 0:00:46]} 6. c4 {[%emt 0:00:32]} Nc6 {[%emt 0:00:39]} 7. b3 {[%emt 0:02:47]} a6 {[%emt 0:05:30]} 8. Nc3 {[%emt 0:03:44]} Rb8 {[%emt 0:02:03]} 9. d5 {[%emt 0:03:33]} Na5 {[%emt 0:09:27]} 10. Bg5 {[%emt 0:06:50]} c5 {[%emt 0:09:16]} 11. dxc6 {[%emt 0:05:15]} Nxc6 {[%emt 0:01:44]} 12. Rc1 {[%emt 0:01:34]} Bd7 {[%emt 0:01:46]} 13. Nd5 {[%emt 0:11:02]} Nxd5 {[%emt 0:15:47]} 14. cxd5 {[%emt 0:05:03]} Nb4 {[%emt 0:04:24]} 15. Qd2 {[%emt 0:07:01]} a5 {[%emt 0:00:02]} 16. Rc4 {[%emt 0:04:31]} Re8 {[%emt 0:07:17]} 17. Bh6 {[%emt 0:07:10]} Bf6 {[%emt 0:01:48]} 18. a3 {[%emt 0:04:05]} Na6 {[%emt 0:03:57]} 19. Ng5 {[%emt 0:01:42]} Rc8 {[%emt 0:03:39]} 20. Rfc1 {[%emt 0:08:27]} Qb6 {[%emt 0:04:32]} 21. h4 {[%emt 0:06:59]} Nc5 {[%emt 0:06:26]} 22. Ne4 {[%emt 0:10:47]} Nxe4 {[%emt 0:02:46]} 23. Bxe4 {[%emt 0:00:17]} Rxc4 {[%emt 0:01:25]} 24. Rxc4 {[%emt 0:02:32]} Bb5 {[%emt 0:07:44]} 25. Rc2 {[%emt 0:02:39]} a4 {[%emt 0:02:16]} 26. Be3 {[%emt 0:02:08]} Qd8 {[%emt 0:03:49]} 27. b4 {[%emt 0:00:16]} Qb8 {[%emt 0:03:44]} 28. Qc1 {[%emt 0:02:34]} Bd7 {[%emt 0:00:12]} 29. h5 {[%emt 0:03:59]} Rc8 {[%emt 0:00:09]} 30. h6 {[%emt 0:00:36]} Rxc2 {[%emt 0:00:44]} 31. Qxc2 {[%emt 0:00:04]} Qc8 {[%emt 0:00:23]} 32. Qxc8+ {[%emt 0:00:14]} Bxc8 {[%emt 0:00:04]} 33. Bc1 {[%emt 0:00:08]} Bf5 {[%emt 0:01:32]} 34. Bf3 {[%emt 0:00:46]} b5 {[%emt 0:01:36]} 35. e4 {[%emt 0:01:22]} Bd7 {[%emt 0:00:03]} 36. Be2 {[%emt 0:00:14]} Bd4 {[%emt 0:00:23]} 37. Kg2 {[%emt 0:00:22]} f6 {[%emt 0:01:56]} 38. f4 {[%emt 0:00:39]} Kf7 {[%emt 0:08:18]} 39. g4 {[%emt 0:00:57]} g5 {[%emt 0:00:00]} 40. f5 {[%emt 0:00:42]} Ke8 {[%emt 0:00:00]} 1/2-1/2

[Event "Charlotte Open 2024"]
[Site "Charlotte"]
[Date "2024.01.15"]
[Round "6.16"]
[White "Myers, Dominique"]
[Black "Abrahamyan, Tatev"]
[Result "0-1"]
[ECO "C02"]
[WhiteElo "2028"]
[BlackElo "2311"]
[Annotator "TA"]
[PlyCount "76"]
[EventDate "2024.01.05"]
[EventType "swiss"]
[EventCountry "USA"]
[SourceTitle "playchess.com"]
[Source "ChessBase"]
[SourceQuality "1"]
[TimeControl "6600+10"]

{[%evp 18,76,28,6,23,-8,-25,-71,-78,-85,-83,-90,-60,-79,-56,-84,-45,-269,-255,-243,-229,-241,-216,-219,-218,-327,-180,-182,0,-340,-331,-355,-334,-712,-712,-808,-777,-828,-847,-1329,-1320,-1302,-1078,-29991,-29984,-29987,-29984,-29984,-29985,-29985,-29986,-29991,-3056,-2648,-2547,-29965,-5241,-29985,-29986,-29991,-29992]} 1. e4 {[%emt 0:03:57][%cal Be2e4,Be4e5][%mdl 32]} e6 {[%emt 0:00:06]} 2. d4 {[%emt 0:00:07]} d5 {[%emt 0:00:03]} 3. e5 {[%emt 0:00:12]} c5 {[%emt 0:00:09]} 4. c3 {[%emt 0:00:05]} Nc6 {[%emt 0:00:03]} 5. Nf3 {[%emt 0:00:06]} Bd7 {[%emt 0:00:03]} 6. Be2 {[%emt 0:00:07]} f6 {[%emt 0:00:11]} 7. O-O {[%emt 0:00:25]} fxe5 {[%emt 0:00:23]} 8. Nxe5 {[%emt 0:00:57]} Nxe5 {[%emt 0:00:13]} 9. dxe5 {[%emt 0:00:08]} Qc7 {[%emt 0:00:04]} 10. Re1 {[%emt 0:07:16] now scores much better than the old 10.c4.} (10. c4 $5 {[%cal Rc4d5]}) 10... O-O-O {[%emt 0:00:20] C02: French: Advance Variation.} 11. Bf4 {[%emt 0:04:02]} Ne7 {[%emt 0:02:13] [#]} 12. Bg3 $146 {[%emt 0:00:37]} (12. c4 $11) ({Predecessor:} 12. a4 Ng6 13. Bg3 Nxe5 14. Na3 Bd6 15. Nb5 Bxb5 16. axb5 b6 17. Bg4 Nxg4 {½-½ Macias Pino,D (2439)-Cheng,B (2580) Barcelona Sants op 24th 2023 (4)}) 12... Nf5 $17 {[%emt 0:03:14] Black is better.} 13. Bf4 {[%emt 0:00:54]} Be7 {[%emt 0:02:04]} 14. h3 {[%emt 0:08:55]} Rdf8 {[%emt 0:05:13]} 15. Bh2 {[%emt 0:03:25]} c4 {[%emt 0:02:32]} 16. Nd2 {[%emt 0:01:03]} Bc5 {[%emt 0:00:32][%cal Oc5f2] Black is more active.} (16... Qb6 {seems wilder.} 17. Bf3 Nh4 18. b3 Bg5) 17. Nf3 $2 {[%emt 0:00:55] [#]} (17. Rf1 $1 $15) 17... Bxf2+ $1 $19 {[%emt 0:02:45][%mdl 576] Double Attack} 18. Kh1 {[%emt 0:00:41]} (18. Kxf2 $2 {perishes.} Qb6+ $19) 18... Bxe1 {[%emt 0:05:31]} 19. Qxe1 {[%emt 0:00:12]} Rhg8 {[%emt 0:00:19]} 20. b3 {[%emt 0:00:22]} g5 {[%emt 0:02:20]} 21. Nd2 {[%emt 0:02:47]} (21. Nd4 {was called for.}) 21... Ne3 {[%emt 0:05:04]} (21... Bc6 $142 {aiming for ...Ne3.} 22. Bg4 Kb8) 22. Qg3 {[%emt 0:01:13]} Nf5 {[%emt 0:02:00]} (22... d4 {And now ...Bc6 would win.} 23. Nxc4 g4 24. hxg4 Nxc4 25. bxc4 Qb6 26. cxd4 Qxd4) 23. Qe1 $1 {[%emt 0:00:08]} Bc6 {[%emt 0:01:45]} 24. Bg4 {[%emt 0:05:34]} Ng7 {[%emt 0:05:03] ...h5 would be deadly.} 25. Qe3 $2 {[%emt 0:03:45]} (25. Bd1) 25... h5 {[%emt 0:02:11]} 26. Be2 {[%emt 0:01:17] [#]} g4 $1 {[%emt 0:00:45][%cal Bg5g4,Bg4h3][%mdl 32]} 27. Qxa7 {[%emt 0:02:34]} (27. hxg4 hxg4) 27... gxh3 {[%emt 0:00:47]} 28. bxc4 {[%emt 0:02:27]} Nf5 {[%emt 0:05:12] White must now prevent ...dxc4.} 29. Nf3 {[%emt 0:06:43]} Rxg2 {[%emt 0:05:27][%cal Bg8g2,Bg2e2,Be2e4][%mdl 32]} 30. Rd1 {[%emt 0:13:51]} Rxe2 {[%emt 0:05:18]} 31. cxd5 {[%emt 0:00:06]} Bxd5 {[%emt 0:01:29]} 32. Rxd5 {[%emt 0:01:13]} exd5 {[%emt 0:00:41]} 33. Qa8+ {[%emt 0:01:24]} Qb8 {[%emt 0:00:05]} 34. Qa3 {[%emt 0:00:25]} Rd8 {[%emt 0:00:42]} (34... Ng3+ $142 35. Bxg3 Rxf3 36. Qc5+ Qc7 {[%mdl 64] Deflection} 37. Qg1 Qc4 38. Bf2 Qe4 39. Qg8+ Rf8+ {[%mdl 64] Discovered Attack} 40. Kg1 h2+ 41. Kxh2 Rxg8 42. Kh3 Qh1#) 35. Bf4 {[%emt 0:01:10]} Re4 {[%emt 0:03:41]} 36. Bh2 {[%emt 0:02:15]} h4 {[%emt 0:01:49] ( -> ...Ng3+)} 37. Bg1 {[%emt 0:00:57]} Re2 {[%emt 0:00:40][%cal Rf5g3]} 38. Bh2 {[%emt 0:06:17]} Ng3+ {[%emt 0:00:18] Weighted Error Value: White=0.95/Black=0.63} 0-1

[Event "Charlotte Open 2024"]
[Site "Charlotte"]
[Date "2024.01.15"]
[Round "6.17"]
[White "Parker, Anthony"]
[Black "Proleiko, Julian"]
[Result "1/2-1/2"]
[ECO "A03"]
[WhiteElo "1909"]
[BlackElo "2270"]
[Annotator "RC"]
[PlyCount "88"]
[EventDate "2024.01.05"]
[EventType "swiss"]
[EventCountry "USA"]
[SourceTitle "playchess.com"]
[Source "ChessBase"]
[SourceQuality "1"]
[TimeControl "6600+10"]

1. f4 {[%emt 0:00:03]} c5 {[%emt 0:00:12]} 2. Nf3 {[%emt 0:00:06]} Nf6 {[%emt 0:00:06]} 3. d3 {[%emt 0:00:16]} d5 {[%emt 0:00:15]} 4. e3 {[%emt 0:00:17]} Nc6 {[%emt 0:01:06]} 5. Be2 {[%emt 0:00:04]} Bg4 {[%emt 0:00:45]} 6. O-O {[%emt 0:00:55]} e6 {[%emt 0:00:06]} 7. h3 {[%emt 0:00:20]} Bxf3 {[%emt 0:00:12]} 8. Bxf3 {[%emt 0:00:02]} Be7 {[%emt 0:01:21]} 9. g4 {[%emt 0:02:09]} d4 {[%emt 0:01:06]} 10. Bxc6+ {[%emt 0:01:38]} bxc6 {[%emt 0:00:03]} 11. e4 {[%emt 0:00:03]} c4 {[%emt 0:00:16]} 12. g5 {[%emt 0:00:52]} Nd7 {[%emt 0:00:05]} 13. h4 {[%emt 0:12:51]} cxd3 {[%emt 0:04:03]} 14. cxd3 {[%emt 0:00:19]} h6 {[%emt 0:01:27]} 15. g6 {[%emt 0:02:17]} fxg6 {[%emt 0:01:14]} 16. Qg4 {[%emt 0:04:07]} O-O {[%emt 0:03:22]} 17. Qxe6+ {[%emt 0:01:50]} Kh7 {[%emt 0:00:04]} 18. Nd2 {[%emt 0:03:27]} Nc5 {[%emt 0:03:38]} 19. Qh3 {[%emt 0:03:33]} Bxh4 {[%emt 0:01:11]} 20. b4 {[%emt 0:07:46]} Na4 {[%emt 0:00:32]} 21. Nf3 {[%emt 0:00:22]} Bf6 {[%emt 0:00:05]} 22. Bd2 {[%emt 0:02:15]} Nc3 {[%emt 0:01:20]} 23. Rf2 {[%emt 0:00:54]} a5 {[%emt 0:00:04]} 24. Rh2 {[%emt 0:00:41]} axb4 {[%emt 0:12:50]} 25. f5 {[%emt 0:00:44]} g5 {[%emt 0:00:45]} 26. e5 {[%emt 0:08:59]} Kg8 {[%emt 0:00:05]} 27. exf6 {[%emt 0:18:45]} Qxf6 {[%emt 0:00:04]} 28. Qg4 {[%emt 0:04:43]} c5 {[%emt 0:03:29]} 29. Bxc3 {[%emt 0:00:29]} bxc3 {[%emt 0:00:05]} 30. a4 {[%emt 0:01:46]} Qxf5 {[%emt 0:00:13]} 31. Qxf5 {[%emt 0:00:34]} Rxf5 {[%emt 0:00:02]} 32. Ne1 {[%emt 0:01:36]} Ra5 {[%emt 0:01:57]} 33. Re2 {[%emt 0:00:46]} Kf7 {[%emt 0:00:34]} 34. Kg2 {[%emt 0:00:16]} g4 {[%emt 0:00:58]} 35. Kg3 {[%emt 0:00:11]} h5 {[%emt 0:00:05]} 36. Rb1 {[%emt 0:03:51]} c4 {[%emt 0:09:48]} 37. Rb7+ {[%emt 0:01:25]} Kf6 {[%emt 0:00:07]} 38. Ree7 {[%emt 0:08:20]} g6 {[%emt 0:03:37]} 39. Kh4 {[%emt 0:00:13]} Rae5 {[%emt 0:03:22]} 40. Rf7+ {[%emt 0:01:14]} Ke6 {[%emt 0:00:04]} 41. Rfe7+ {[%emt 0:01:45]} Kd6 {[%emt 0:56:22]} 42. Red7+ {[%emt 0:14:26]} Ke6 {[%emt 0:00:10]} 43. Rf7 {[%emt 0:00:10]} Rc5 {[%emt 0:00:10]} 44. Rfe7+ {[%emt 0:00:10]} Kf6 {[%emt 0:00:00]} 1/2-1/2